[Event "Late-Titled-Tuesday-Blitz-March-05-2024"]
[Site "Chess.com"]
[Date "2024.03.05"]
[Round "3"]
[White "Adham_Fawzy"]
[Black "terrortoast"]
[Result "1-0"]
[WhiteElo "2804"]
[BlackElo "2516"]
[TimeControl "180+1"]
[EndTime "14:23:49 PST"]
[Termination "Adham_Fawzy won by resignation"]

1. e4 {[%clk 0:02:52.5]} 1... c6 {[%clk 0:03:00.1]} 2. d4 {[%clk 0:02:52.6]}
2... d5 {[%clk 0:03:00.4]} 3. exd5 {[%clk 0:02:53.5]} 3... cxd5 {[%clk
0:03:01.2]} 4. c4 {[%clk 0:02:53.9]} 4... Nf6 {[%clk 0:03:01]} 5. Nc3 {[%clk
0:02:54.5]} 5... e6 {[%clk 0:03:01.3]} 6. c5 {[%clk 0:02:54.8]} 6... b6 {[%clk
0:03:00.4]} 7. b4 {[%clk 0:02:54.9]} 7... a5 {[%clk 0:03:00.7]} 8. Na4 {[%clk
0:02:55.4]} 8... Nbd7 {[%clk 0:02:53.6]} 9. Bb5 {[%clk 0:02:54.4]} 9... Ba6
{[%clk 0:02:51.1]} 10. Bxa6 {[%clk 0:02:53.3]} 10... Rxa6 {[%clk 0:02:45.7]} 11.
b5 {[%clk 0:02:52.7]} 11... Ra8 {[%clk 0:02:40.7]} 12. c6 {[%clk 0:02:52]} 12...
Nc5 {[%clk 0:02:41.2]} 13. dxc5 {[%clk 0:02:52]} 13... bxc5 {[%clk 0:02:41.5]}
14. Nf3 {[%clk 0:02:49]} 14... Rb8 {[%clk 0:02:35]} 15. Rb1 {[%clk 0:02:48.6]}
15... Bd6 {[%clk 0:02:28.7]} 16. O-O {[%clk 0:02:47.7]} 16... O-O {[%clk
0:02:26.1]} 17. Ba3 {[%clk 0:02:46.6]} 17... Ne4 {[%clk 0:02:22.4]} 18. Qc2
{[%clk 0:02:20.7]} 18... Qf6 {[%clk 0:02:10.8]} 19. Bxc5 {[%clk 0:02:04.4]}
19... Bxc5 {[%clk 0:02:04]} 20. Nxc5 {[%clk 0:02:05.3]} 20... Nc3 {[%clk
0:01:58.2]} 21. Nd7 {[%clk 0:02:04.8]} 1-0

[Event "Late-Titled-Tuesday-Blitz-March-05-2024"]
[Site "Chess.com"]
[Date "2024.03.05"]
[Round "3"]
[White "Felix-Rose"]
[Black "JackRodgers"]
[Result "0-1"]
[WhiteElo "2288"]
[BlackElo "2517"]
[TimeControl "180+1"]
[EndTime "14:24:01 PST"]
[Termination "JackRodgers won by resignation"]

1. e4 {[%clk 0:03:00.1]} 1... c5 {[%clk 0:02:59.9]} 2. Nf3 {[%clk 0:03:00.2]}
2... g6 {[%clk 0:03:00]} 3. d4 {[%clk 0:03:00.3]} 3... cxd4 {[%clk 0:03:00.9]}
4. Nxd4 {[%clk 0:03:01.2]} 4... Nc6 {[%clk 0:03:00.3]} 5. c4 {[%clk 0:03:01.5]}
5... Bg7 {[%clk 0:03:00.4]} 6. Be3 {[%clk 0:03:01.9]} 6... Nf6 {[%clk
0:03:00.3]} 7. Nc3 {[%clk 0:03:02.5]} 7... Ng4 {[%clk 0:03:00.7]} 8. Qxg4 {[%clk
0:03:01.9]} 8... Nxd4 {[%clk 0:03:00.8]} 9. Qd1 {[%clk 0:03:02]} 9... e5 {[%clk
0:03:01.1]} 10. Bd3 {[%clk 0:03:00.5]} 10... d6 {[%clk 0:03:01.4]} 11. O-O
{[%clk 0:03:00.9]} 11... Be6 {[%clk 0:03:01.6]} 12. Qd2 {[%clk 0:03:00.8]} 12...
O-O {[%clk 0:03:01.9]} 13. Rfd1 {[%clk 0:02:58.8]} 13... a6 {[%clk 0:03:00.4]}
14. Rac1 {[%clk 0:02:58.9]} 14... b5 {[%clk 0:02:57.1]} 15. cxb5 {[%clk
0:02:55.3]} 15... axb5 {[%clk 0:02:58]} 16. Nxb5 {[%clk 0:02:49.8]} 16... Rxa2
{[%clk 0:02:41.7]} 17. Bb1 {[%clk 0:02:40.9]} 17... Nb3 {[%clk 0:02:13]} 18. Qe1
{[%clk 0:02:35.7]} 18... Nxc1 {[%clk 0:02:12.6]} 19. Bxc1 {[%clk 0:02:30.9]}
19... Ra1 {[%clk 0:02:07.9]} 20. Bc2 {[%clk 0:02:10.7]} 20... Qb8 {[%clk
0:01:57.2]} 21. Nxd6 {[%clk 0:02:09.7]} 21... Rxc1 {[%clk 0:01:56.6]} 0-1

[Event "Late-Titled-Tuesday-Blitz-March-05-2024"]
[Site "Chess.com"]
[Date "2024.03.05"]
[Round "3"]
[White "zano2023"]
[Black "Burgsvik"]
[Result "0-1"]
[WhiteElo "2109"]
[BlackElo "2360"]
[TimeControl "180+1"]
[EndTime "14:24:08 PST"]
[Termination "Burgsvik won by checkmate"]

1. c4 {[%clk 0:03:00.9]} 1... c5 {[%clk 0:03:00.9]} 2. Nc3 {[%clk 0:03:00.6]}
2... Nc6 {[%clk 0:02:59.4]} 3. Nf3 {[%clk 0:03:01.1]} 3... d6 {[%clk 0:02:59.7]}
4. g3 {[%clk 0:03:01.6]} 4... Be6 {[%clk 0:03:00]} 5. d3 {[%clk 0:03:00.6]} 5...
Qc8 {[%clk 0:03:00.1]} 6. Bg2 {[%clk 0:02:58.1]} 6... Bh3 {[%clk 0:02:59.3]} 7.
O-O {[%clk 0:02:58.4]} 7... h5 {[%clk 0:02:58.5]} 8. Re1 {[%clk 0:02:58.6]} 8...
h4 {[%clk 0:02:58.5]} 9. Bh1 {[%clk 0:02:58.8]} 9... hxg3 {[%clk 0:02:58.2]} 10.
hxg3 {[%clk 0:02:59.6]} 10... Bg4 {[%clk 0:02:57.9]} 11. a3 {[%clk 0:02:56.2]}
11... g6 {[%clk 0:02:57]} 12. Rb1 {[%clk 0:02:55.2]} 12... Bg7 {[%clk
0:02:57.1]} 13. Nd5 {[%clk 0:02:48.5]} 13... Nf6 {[%clk 0:02:54.6]} 14. Nxf6+
{[%clk 0:02:47]} 14... Bxf6 {[%clk 0:02:54.1]} 15. b4 {[%clk 0:02:47.9]} 15...
Rxh1+ {[%clk 0:02:49.1]} 16. Kxh1 {[%clk 0:02:42.1]} 16... Bxf3+ {[%clk
0:02:49.5]} 17. exf3 {[%clk 0:02:41.9]} 17... Qh3+ {[%clk 0:02:49.4]} 18. Kg1
{[%clk 0:02:42.4]} 18... O-O-O {[%clk 0:02:49.2]} 19. f4 {[%clk 0:02:35.8]}
19... Nd4 {[%clk 0:02:49.2]} 20. f3 {[%clk 0:01:16.7]} 20... Qxg3+ {[%clk
0:02:46.7]} 21. Kf1 {[%clk 0:01:16.8]} 21... Rh8 {[%clk 0:02:46.7]} 22. Be3
{[%clk 0:01:05.5]} 22... Rh1+ {[%clk 0:02:43.5]} 23. Bg1 {[%clk 0:01:05.8]}
23... Qxg1# {[%clk 0:02:43.6]} 0-1

[Event "Late-Titled-Tuesday-Blitz-March-05-2024"]
[Site "Chess.com"]
[Date "2024.03.05"]
[Round "3"]
[White "ljuks68"]
[Black "Bekkedahl"]
[Result "1-0"]
[WhiteElo "2417"]
[BlackElo "2195"]
[TimeControl "180+1"]
[EndTime "14:24:18 PST"]
[Termination "ljuks68 won by resignation"]

1. e4 {[%clk 0:03:00.9]} 1... c5 {[%clk 0:02:59.2]} 2. Nf3 {[%clk 0:03:01.2]}
2... g6 {[%clk 0:02:57.2]} 3. c4 {[%clk 0:03:00.9]} 3... Nc6 {[%clk 0:02:50.3]}
4. d4 {[%clk 0:03:01]} 4... cxd4 {[%clk 0:02:49.8]} 5. Nxd4 {[%clk 0:03:01.7]}
5... Nf6 {[%clk 0:02:50.3]} 6. Nc3 {[%clk 0:03:00.9]} 6... d6 {[%clk 0:02:43.7]}
7. Be2 {[%clk 0:03:00]} 7... Nxd4 {[%clk 0:02:42.8]} 8. Qxd4 {[%clk 0:03:00]}
8... Bg7 {[%clk 0:02:43.5]} 9. Be3 {[%clk 0:03:00.4]} 9... O-O {[%clk
0:02:44.2]} 10. Qd2 {[%clk 0:03:00.3]} 10... a5 {[%clk 0:02:42.6]} 11. f3 {[%clk
0:02:54.7]} 11... a4 {[%clk 0:02:41.7]} 12. Rc1 {[%clk 0:02:54.9]} 12... Qa5
{[%clk 0:02:39.6]} 13. Nd5 {[%clk 0:02:54.8]} 13... Qxd2+ {[%clk 0:02:09.3]} 14.
Kxd2 {[%clk 0:02:54.2]} 14... Re8 {[%clk 0:02:05.1]} 15. Nc7 {[%clk 0:02:52.7]}
15... Be6 {[%clk 0:02:05.7]} 16. Nxe8 {[%clk 0:02:46.2]} 16... Nxe8 {[%clk
0:02:01.1]} 17. Kc2 {[%clk 0:02:42.9]} 17... f5 {[%clk 0:01:59.7]} 18. Bd3
{[%clk 0:02:36.8]} 18... Rc8 {[%clk 0:01:49.3]} 19. Kb1 {[%clk 0:02:36]} 19...
Rc7 {[%clk 0:01:29.5]} 20. exf5 {[%clk 0:02:25.5]} 20... gxf5 {[%clk 0:01:29.3]}
21. Rhe1 {[%clk 0:02:25.1]} 21... Bf7 {[%clk 0:01:28.3]} 22. Bxf5 {[%clk
0:02:15.1]} 22... Bxc4 {[%clk 0:01:25.3]} 23. Rxc4 {[%clk 0:02:13.3]} 23... Rxc4
{[%clk 0:01:24.8]} 24. Be6+ {[%clk 0:02:13.7]} 1-0

[Event "Late-Titled-Tuesday-Blitz-March-05-2024"]
[Site "Chess.com"]
[Date "2024.03.05"]
[Round "3"]
[White "norwaytoadog"]
[Black "santosalberto1987"]
[Result "0-1"]
[WhiteElo "2266"]
[BlackElo "2538"]
[TimeControl "180+1"]
[EndTime "14:24:38 PST"]
[Termination "santosalberto1987 won by resignation"]

1. e4 {[%clk 0:03:00.2]} 1... e6 {[%clk 0:02:50.5]} 2. d4 {[%clk 0:03:00.1]}
2... d5 {[%clk 0:02:50.5]} 3. Nc3 {[%clk 0:03:00.7]} 3... Nf6 {[%clk 0:02:50.4]}
4. e5 {[%clk 0:03:00.9]} 4... Nfd7 {[%clk 0:02:47.2]} 5. f4 {[%clk 0:03:01.3]}
5... c5 {[%clk 0:02:46.6]} 6. Nf3 {[%clk 0:03:01.7]} 6... Nc6 {[%clk 0:02:47]}
7. Be3 {[%clk 0:03:02.2]} 7... Qb6 {[%clk 0:02:46.9]} 8. Na4 {[%clk 0:02:53.5]}
8... Qa5+ {[%clk 0:02:46.8]} 9. c3 {[%clk 0:02:53.7]} 9... b6 {[%clk 0:02:47]}
10. a3 {[%clk 0:02:45.2]} 10... c4 {[%clk 0:02:46.1]} 11. Kf2 {[%clk 0:02:32.9]}
11... Ba6 {[%clk 0:02:43.1]} 12. h4 {[%clk 0:02:17.4]} 12... Bb5 {[%clk
0:02:42.7]} 13. b3 {[%clk 0:02:06.1]} 13... cxb3 {[%clk 0:02:42.6]} 14. Nb2
{[%clk 0:02:05.6]} 14... Bxf1 {[%clk 0:02:41.2]} 15. Rxf1 {[%clk 0:01:56.9]}
15... Qxc3 {[%clk 0:02:39.7]} 16. Kg3 {[%clk 0:01:34.4]} 16... Qxb2 {[%clk
0:02:26.1]} 17. Qd3 {[%clk 0:01:34]} 17... Qc2 {[%clk 0:02:19.2]} 18. Qb5 {[%clk
0:01:23.8]} 18... a6 {[%clk 0:02:18.9]} 0-1

[Event "Late-Titled-Tuesday-Blitz-March-05-2024"]
[Site "Chess.com"]
[Date "2024.03.05"]
[Round "3"]
[White "Vegan4future"]
[Black "kalxandria"]
[Result "1-0"]
[WhiteElo "2475"]
[BlackElo "2157"]
[TimeControl "180+1"]
[EndTime "14:24:38 PST"]
[Termination "Vegan4future won by checkmate"]

1. e4 {[%clk 0:03:00.9]} 1... e6 {[%clk 0:02:59.5]} 2. Nf3 {[%clk 0:02:59.7]}
2... d5 {[%clk 0:02:57.9]} 3. Nc3 {[%clk 0:03:00.2]} 3... dxe4 {[%clk
0:02:56.1]} 4. Nxe4 {[%clk 0:03:01.1]} 4... Nf6 {[%clk 0:02:56.3]} 5. Ng3 {[%clk
0:03:01.1]} 5... Be7 {[%clk 0:02:54.1]} 6. d4 {[%clk 0:03:00.9]} 6... O-O {[%clk
0:02:52.2]} 7. Bd3 {[%clk 0:03:01.4]} 7... b6 {[%clk 0:02:51.5]} 8. O-O {[%clk
0:03:01.6]} 8... Bb7 {[%clk 0:02:51.2]} 9. c3 {[%clk 0:03:02.2]} 9... Nbd7
{[%clk 0:02:50.7]} 10. Bc2 {[%clk 0:03:01.9]} 10... c5 {[%clk 0:02:49.9]} 11.
Re1 {[%clk 0:03:01.5]} 11... cxd4 {[%clk 0:02:48.5]} 12. Nxd4 {[%clk 0:03:02.4]}
12... Nc5 {[%clk 0:02:46.5]} 13. Qe2 {[%clk 0:02:52.1]} 13... Re8 {[%clk
0:02:32.1]} 14. Bg5 {[%clk 0:02:13.7]} 14... Qd5 {[%clk 0:02:29]} 15. Nf3 {[%clk
0:02:12]} 15... h6 {[%clk 0:02:24]} 16. c4 {[%clk 0:02:08]} 16... Qc6 {[%clk
0:02:19.8]} 17. Bf4 {[%clk 0:01:59.6]} 17... Rad8 {[%clk 0:02:15.3]} 18. Rad1
{[%clk 0:01:56.2]} 18... e5 {[%clk 0:02:08.5]} 19. Bxe5 {[%clk 0:01:49.8]} 19...
Rxd1 {[%clk 0:02:02.5]} 20. Qxd1 {[%clk 0:01:50.6]} 20... Ng4 {[%clk 0:01:56.2]}
21. Bc3 {[%clk 0:01:34.4]} 21... Bf6 {[%clk 0:01:46.9]} 22. Bxf6 {[%clk
0:01:33.8]} 22... Rxe1+ {[%clk 0:01:44]} 23. Qxe1 {[%clk 0:01:34.2]} 23... Qxf6
{[%clk 0:01:43.3]} 24. Qe8# {[%clk 0:01:34]} 1-0

[Event "Late-Titled-Tuesday-Blitz-March-05-2024"]
[Site "Chess.com"]
[Date "2024.03.05"]
[Round "3"]
[White "Hikaru"]
[Black "Blitzstream"]
[Result "1-0"]
[WhiteElo "3258"]
[BlackElo "2792"]
[TimeControl "180+1"]
[EndTime "14:25:16 PST"]
[Termination "Hikaru won by resignation"]

1. Nf3 {[%clk 0:03:00.9]} 1... d5 {[%clk 0:03:00.2]} 2. d4 {[%clk 0:02:59.3]}
2... Nf6 {[%clk 0:03:00.7]} 3. c4 {[%clk 0:02:58.4]} 3... c6 {[%clk 0:03:01.1]}
4. Qc2 {[%clk 0:02:57.3]} 4... g6 {[%clk 0:03:01]} 5. Bf4 {[%clk 0:02:56.8]}
5... Bf5 {[%clk 0:03:01.3]} 6. Qc1 {[%clk 0:02:55.9]} 6... Bg7 {[%clk
0:03:00.8]} 7. Nbd2 {[%clk 0:02:55.1]} 7... O-O {[%clk 0:03:00.3]} 8. e3 {[%clk
0:02:55.6]} 8... Nh5 {[%clk 0:02:53.3]} 9. Bg5 {[%clk 0:02:54.4]} 9... h6 {[%clk
0:02:52.6]} 10. Bh4 {[%clk 0:02:54.6]} 10... g5 {[%clk 0:02:53.1]} 11. Bg3
{[%clk 0:02:54.8]} 11... Nd7 {[%clk 0:02:52.3]} 12. Be2 {[%clk 0:02:54.7]} 12...
Nxg3 {[%clk 0:02:49.9]} 13. hxg3 {[%clk 0:02:55.6]} 13... Nf6 {[%clk 0:02:50.3]}
14. O-O {[%clk 0:02:51.6]} 14... Ne4 {[%clk 0:02:50.1]} 15. Nxe4 {[%clk
0:02:51.1]} 15... Bxe4 {[%clk 0:02:51]} 16. Nd2 {[%clk 0:02:51.3]} 16... Bg6
{[%clk 0:02:50.9]} 17. f4 {[%clk 0:02:49.6]} 17... e6 {[%clk 0:02:48.9]} 18. b4
{[%clk 0:02:42.2]} 18... a5 {[%clk 0:02:47.6]} 19. a3 {[%clk 0:02:42.3]} 19...
axb4 {[%clk 0:02:27.7]} 20. axb4 {[%clk 0:02:43.2]} 20... Rxa1 {[%clk 0:02:28]}
21. Qxa1 {[%clk 0:02:43.4]} 21... Qb6 {[%clk 0:02:28.6]} 22. Qc3 {[%clk
0:02:31.3]} 22... Ra8 {[%clk 0:02:27.4]} 23. c5 {[%clk 0:02:30.8]} 23... Qa7
{[%clk 0:02:27.7]} 24. Rc1 {[%clk 0:02:28.7]} 24... Qa3 {[%clk 0:02:24]} 25. Nb3
{[%clk 0:02:28.8]} 25... Ra4 {[%clk 0:02:19.6]} 26. b5 {[%clk 0:02:29]} 26...
Qb4 {[%clk 0:01:53]} 27. Qxb4 {[%clk 0:02:23.1]} 27... Rxb4 {[%clk 0:01:53.2]}
28. Na5 {[%clk 0:02:24]} 28... Rb2 {[%clk 0:01:09.5]} 29. Bf1 {[%clk 0:02:22.8]}
29... Kf8 {[%clk 0:00:53.9]} 30. Nxb7 {[%clk 0:02:22.6]} 30... Ke7 {[%clk
0:00:51.1]} 31. bxc6 {[%clk 0:02:22.1]} 31... f6 {[%clk 0:00:46]} 32. Nd6 {[%clk
0:02:18.8]} 32... Kd8 {[%clk 0:00:45.1]} 33. Ra1 {[%clk 0:02:18.9]} 33... Kc7
{[%clk 0:00:45.4]} 34. Ra7+ {[%clk 0:02:18.3]} 34... Kxc6 {[%clk 0:00:45.4]} 35.
Rxg7 {[%clk 0:02:18.7]} 1-0

[Event "Late-Titled-Tuesday-Blitz-March-05-2024"]
[Site "Chess.com"]
[Date "2024.03.05"]
[Round "3"]
[White "giomar27"]
[Black "ProChessWICTH"]
[Result "0-1"]
[WhiteElo "2417"]
[BlackElo "2647"]
[TimeControl "180+1"]
[EndTime "14:25:25 PST"]
[Termination "ProChessWICTH won by resignation"]

1. d4 {[%clk 0:03:00.9]} 1... d5 {[%clk 0:02:59.9]} 2. Nc3 {[%clk 0:03:01.5]}
2... c6 {[%clk 0:02:58.9]} 3. e4 {[%clk 0:03:01.2]} 3... dxe4 {[%clk 0:02:58.5]}
4. Nxe4 {[%clk 0:03:02.1]} 4... Bf5 {[%clk 0:02:58.9]} 5. Ng3 {[%clk 0:03:01.7]}
5... Bg6 {[%clk 0:02:59.3]} 6. h4 {[%clk 0:03:02.4]} 6... h6 {[%clk 0:02:59.2]}
7. Nf3 {[%clk 0:03:02.8]} 7... Nd7 {[%clk 0:02:58.3]} 8. h5 {[%clk 0:03:03.3]}
8... Bh7 {[%clk 0:02:58.4]} 9. Bd3 {[%clk 0:03:04]} 9... Bxd3 {[%clk 0:02:58.7]}
10. Qxd3 {[%clk 0:03:04.9]} 10... e6 {[%clk 0:02:57.9]} 11. Bd2 {[%clk
0:03:05.3]} 11... Ngf6 {[%clk 0:02:56.6]} 12. O-O-O {[%clk 0:03:05.8]} 12... Bd6
{[%clk 0:02:57.3]} 13. Ne4 {[%clk 0:02:59.7]} 13... Nxe4 {[%clk 0:02:55.1]} 14.
Qxe4 {[%clk 0:03:00.6]} 14... Nf6 {[%clk 0:02:55.7]} 15. Qe2 {[%clk 0:03:00.8]}
15... Qc7 {[%clk 0:02:54]} 16. Rh4 {[%clk 0:02:57.3]} 16... O-O-O {[%clk
0:02:53]} 17. Ne5 {[%clk 0:02:52.3]} 17... Bxe5 {[%clk 0:02:51.5]} 18. dxe5
{[%clk 0:02:52.4]} 18... Nd5 {[%clk 0:02:49.9]} 19. Rg4 {[%clk 0:02:46.3]} 19...
Rhg8 {[%clk 0:02:49.1]} 20. c4 {[%clk 0:02:35.5]} 20... Ne7 {[%clk 0:02:47.2]}
21. Bc3 {[%clk 0:02:33.5]} 21... Nf5 {[%clk 0:02:36.4]} 22. Rxd8+ {[%clk
0:02:26.6]} 22... Qxd8 {[%clk 0:02:37.3]} 23. Qd2 {[%clk 0:02:23.9]} 23... Qe7
{[%clk 0:02:35.1]} 24. Re4 {[%clk 0:02:18]} 24... Rd8 {[%clk 0:02:32.9]} 25. Qf4
{[%clk 0:02:17.9]} 25... c5 {[%clk 0:02:30.7]} 26. g4 {[%clk 0:02:17]} 26... Qd7
{[%clk 0:01:56.1]} 27. Re1 {[%clk 0:02:12.3]} 27... Nd4 {[%clk 0:01:54.2]} 28.
Bxd4 {[%clk 0:02:02.5]} 28... Qxd4 {[%clk 0:01:53.7]} 29. Qxd4 {[%clk
0:01:56.4]} 29... Rxd4 {[%clk 0:01:54.6]} 30. f3 {[%clk 0:01:41.4]} 30... Rxc4+
{[%clk 0:01:54.2]} 31. Kd2 {[%clk 0:01:41.6]} 31... Rd4+ {[%clk 0:01:54.8]} 32.
Kc3 {[%clk 0:01:40.9]} 32... b6 {[%clk 0:01:55.2]} 33. Rf1 {[%clk 0:01:38.4]}
33... Kd7 {[%clk 0:01:53.4]} 34. f4 {[%clk 0:01:38.9]} 34... Kc6 {[%clk
0:01:52.7]} 35. g5 {[%clk 0:01:34.9]} 35... Kd5 {[%clk 0:01:48]} 36. f5 {[%clk
0:01:34.5]} 36... hxg5 {[%clk 0:01:44.4]} 37. f6 {[%clk 0:01:30.3]} 37... gxf6
{[%clk 0:01:44.6]} 38. Rh1 {[%clk 0:01:30.4]} 38... Kxe5 {[%clk 0:01:41]} 39. h6
{[%clk 0:01:27.6]} 39... Rd8 {[%clk 0:01:41.5]} 40. h7 {[%clk 0:01:28]} 40...
Rh8 {[%clk 0:01:42]} 0-1

[Event "Late-Titled-Tuesday-Blitz-March-05-2024"]
[Site "Chess.com"]
[Date "2024.03.05"]
[Round "3"]
[White "andrzej"]
[Black "DraningWaterHi"]
[Result "1-0"]
[WhiteElo "2490"]
[BlackElo "2192"]
[TimeControl "180+1"]
[EndTime "14:25:29 PST"]
[Termination "andrzej won by resignation"]

1. e4 {[%clk 0:03:00.9]} 1... c5 {[%clk 0:02:58.3]} 2. Nf3 {[%clk 0:03:01.3]}
2... a6 {[%clk 0:02:58.5]} 3. c4 {[%clk 0:03:01]} 3... Nc6 {[%clk 0:02:57.1]} 4.
d4 {[%clk 0:02:59.5]} 4... cxd4 {[%clk 0:02:57]} 5. Nxd4 {[%clk 0:02:59.8]} 5...
g6 {[%clk 0:02:51.2]} 6. Nc3 {[%clk 0:02:56.1]} 6... Bg7 {[%clk 0:02:50.2]} 7.
Be3 {[%clk 0:02:56.6]} 7... Nf6 {[%clk 0:02:44.1]} 8. Nxc6 {[%clk 0:02:56.4]}
8... bxc6 {[%clk 0:02:44]} 9. e5 {[%clk 0:02:56.3]} 9... Ng8 {[%clk 0:02:41.8]}
10. f4 {[%clk 0:02:55.9]} 10... Nh6 {[%clk 0:02:35.4]} 11. Bd3 {[%clk
0:02:49.4]} 11... O-O {[%clk 0:02:34.1]} 12. O-O {[%clk 0:02:49.2]} 12... d5
{[%clk 0:02:33.5]} 13. cxd5 {[%clk 0:02:43.3]} 13... cxd5 {[%clk 0:02:34.4]} 14.
Ne2 {[%clk 0:02:30.5]} 14... Nf5 {[%clk 0:02:33.5]} 15. Bf2 {[%clk 0:02:27.9]}
15... Rb8 {[%clk 0:02:28.2]} 16. b3 {[%clk 0:02:25]} 16... f6 {[%clk 0:02:25.9]}
17. exf6 {[%clk 0:02:19.2]} 17... Bxf6 {[%clk 0:02:26.8]} 18. Rc1 {[%clk
0:02:18.9]} 18... e5 {[%clk 0:02:20.5]} 19. fxe5 {[%clk 0:02:07.2]} 19... Bxe5
{[%clk 0:02:21.4]} 20. Bxf5 {[%clk 0:02:00.1]} 20... Bxf5 {[%clk 0:02:17.1]} 21.
Nd4 {[%clk 0:01:59.3]} 21... Qd6 {[%clk 0:02:05.1]} 22. Nf3 {[%clk 0:01:54.2]}
22... Bg7 {[%clk 0:01:57.3]} 23. Bc5 {[%clk 0:01:53.3]} 23... Qf4 {[%clk
0:01:46.6]} 24. Bxf8 {[%clk 0:01:44.7]} 24... Qe3+ {[%clk 0:01:45.1]} 25. Kh1
{[%clk 0:01:42.9]} 25... Rxf8 {[%clk 0:01:45.1]} 26. Qxd5+ {[%clk 0:01:42.7]}
26... Kh8 {[%clk 0:01:44.1]} 27. Rce1 {[%clk 0:01:41.3]} 27... Qc3 {[%clk
0:01:41.8]} 28. Ng5 {[%clk 0:01:35.8]} 28... h6 {[%clk 0:01:28.9]} 29. Ne6
{[%clk 0:01:35.3]} 29... Bxe6 {[%clk 0:01:22.8]} 30. Rxf8+ {[%clk 0:01:32.1]}
30... Bxf8 {[%clk 0:01:23.7]} 31. Qxe6 {[%clk 0:01:32.3]} 31... Bb4 {[%clk
0:01:22.2]} 32. Qe5+ {[%clk 0:01:26.2]} 1-0

[Event "Late-Titled-Tuesday-Blitz-March-05-2024"]
[Site "Chess.com"]
[Date "2024.03.05"]
[Round "3"]
[White "KuzubovYuriy"]
[Black "HaryKane"]
[Result "1-0"]
[WhiteElo "2944"]
[BlackElo "2599"]
[TimeControl "180+1"]
[EndTime "14:25:50 PST"]
[Termination "KuzubovYuriy won by checkmate"]

1. d4 {[%clk 0:03:00.9]} 1... e6 {[%clk 0:02:58.7]} 2. c4 {[%clk 0:02:59.7]}
2... d5 {[%clk 0:02:58.9]} 3. Nc3 {[%clk 0:02:58.7]} 3... f5 {[%clk 0:02:59]} 4.
Bf4 {[%clk 0:02:54.9]} 4... c6 {[%clk 0:02:55.8]} 5. e3 {[%clk 0:02:54.2]} 5...
Nf6 {[%clk 0:02:55.4]} 6. Nf3 {[%clk 0:02:53.3]} 6... Bd6 {[%clk 0:02:55.1]} 7.
Be2 {[%clk 0:02:49.4]} 7... O-O {[%clk 0:02:55]} 8. O-O {[%clk 0:02:49.3]} 8...
Qe7 {[%clk 0:02:52.9]} 9. Bxd6 {[%clk 0:02:42.6]} 9... Qxd6 {[%clk 0:02:52.7]}
10. Ne5 {[%clk 0:02:43]} 10... Nbd7 {[%clk 0:02:52.2]} 11. f4 {[%clk 0:02:43]}
11... b6 {[%clk 0:02:52.2]} 12. cxd5 {[%clk 0:02:39.4]} 12... exd5 {[%clk
0:02:51]} 13. Qc2 {[%clk 0:02:32.1]} 13... g6 {[%clk 0:02:25.8]} 14. Rfd1 {[%clk
0:02:29.6]} 14... Bb7 {[%clk 0:02:25.5]} 15. Rac1 {[%clk 0:02:29.4]} 15... Rac8
{[%clk 0:02:25.2]} 16. Bf3 {[%clk 0:02:29.7]} 16... Ne4 {[%clk 0:02:24.1]} 17.
Nxe4 {[%clk 0:02:22.9]} 17... fxe4 {[%clk 0:02:22.2]} 18. Bg4 {[%clk 0:02:22.9]}
18... Rc7 {[%clk 0:02:13.6]} 19. Bxd7 {[%clk 0:02:20.1]} 19... Rxd7 {[%clk
0:02:14.5]} 20. Nxd7 {[%clk 0:02:20.1]} 20... Qxd7 {[%clk 0:02:15.4]} 21. Qa4
{[%clk 0:02:19]} 21... a5 {[%clk 0:02:11.8]} 22. b4 {[%clk 0:02:16.4]} 22... Ra8
{[%clk 0:02:04.6]} 23. bxa5 {[%clk 0:02:12.9]} 23... Rxa5 {[%clk 0:02:04.2]} 24.
Qb4 {[%clk 0:02:11.9]} 24... Rxa2 {[%clk 0:01:55.2]} 25. Rd2 {[%clk 0:01:56.9]}
25... Ra6 {[%clk 0:01:51]} 26. Qb2 {[%clk 0:01:57.1]} 26... Qd6 {[%clk
0:01:45.9]} 27. Ra1 {[%clk 0:01:55]} 27... c5 {[%clk 0:01:32.8]} 28. Rxa6 {[%clk
0:01:44.6]} 28... Bxa6 {[%clk 0:01:32.8]} 29. Qa3 {[%clk 0:01:43.2]} 29... Bd3
{[%clk 0:01:29]} 30. Rb2 {[%clk 0:01:38.9]} 30... Qc6 {[%clk 0:01:24.9]} 31.
dxc5 {[%clk 0:01:36.4]} 31... Qxc5 {[%clk 0:01:19.5]} 32. Qxc5 {[%clk
0:01:31.6]} 32... bxc5 {[%clk 0:01:19.8]} 33. Kf2 {[%clk 0:01:31.2]} 33... c4
{[%clk 0:01:18.7]} 34. Rb8+ {[%clk 0:01:28.9]} 34... Kf7 {[%clk 0:01:18.4]} 35.
Rc8 {[%clk 0:01:29.4]} 35... h5 {[%clk 0:01:15.6]} 36. Ke1 {[%clk 0:01:29]}
36... Ke6 {[%clk 0:01:15.6]} 37. Kd2 {[%clk 0:01:29.1]} 37... Kf5 {[%clk
0:01:15.7]} 38. Re8 {[%clk 0:01:25.5]} 38... h4 {[%clk 0:01:14.3]} 39. Re5+
{[%clk 0:01:25.3]} 39... Kg4 {[%clk 0:01:14.7]} 40. Rg5# {[%clk 0:01:25.5]} 1-0

[Event "Late-Titled-Tuesday-Blitz-March-05-2024"]
[Site "Chess.com"]
[Date "2024.03.05"]
[Round "3"]
[White "Penafiel-Josselyne02"]
[Black "s-dshubin"]
[Result "0-1"]
[WhiteElo "2040"]
[BlackElo "2327"]
[TimeControl "180+1"]
[EndTime "14:25:54 PST"]
[Termination "s-dshubin won by resignation"]

1. d4 {[%clk 0:02:56.3]} 1... d5 {[%clk 0:02:59.1]} 2. c4 {[%clk 0:02:54.9]}
2... e6 {[%clk 0:02:58.8]} 3. Nc3 {[%clk 0:02:54.5]} 3... Nf6 {[%clk 0:02:58.4]}
4. Bg5 {[%clk 0:02:48]} 4... Nbd7 {[%clk 0:02:58.1]} 5. e3 {[%clk 0:02:33]} 5...
c6 {[%clk 0:02:55.7]} 6. cxd5 {[%clk 0:02:32.1]} 6... exd5 {[%clk 0:02:54.1]} 7.
Bd3 {[%clk 0:02:31.7]} 7... Be7 {[%clk 0:02:54.2]} 8. h3 {[%clk 0:02:30.7]} 8...
Nf8 {[%clk 0:02:55.1]} 9. Qc2 {[%clk 0:02:29.7]} 9... Ng6 {[%clk 0:02:54.4]} 10.
Nf3 {[%clk 0:02:27.5]} 10... O-O {[%clk 0:02:54.1]} 11. O-O {[%clk 0:02:21.8]}
11... Re8 {[%clk 0:02:46.3]} 12. Rab1 {[%clk 0:02:19.4]} 12... Ne4 {[%clk
0:02:44.9]} 13. Bxe7 {[%clk 0:01:25.6]} 13... Qxe7 {[%clk 0:02:45.8]} 14. b4
{[%clk 0:01:18.9]} 14... Nh4 {[%clk 0:02:32.6]} 15. Ne5 {[%clk 0:00:22]} 15...
Bxh3 {[%clk 0:01:54.3]} 16. Bxe4 {[%clk 0:00:19.5]} 16... dxe4 {[%clk
0:01:52.3]} 17. Nxe4 {[%clk 0:00:17]} 17... Bxg2 {[%clk 0:01:49.4]} 18. Rfe1
{[%clk 0:00:14.8]} 18... Bxe4 {[%clk 0:01:44.5]} 19. Qxe4 {[%clk 0:00:14.4]}
19... Qg5+ {[%clk 0:01:45.1]} 20. Qg4 {[%clk 0:00:13.7]} 20... Rxe5 {[%clk
0:01:44]} 0-1